Workbook

Sheet Foglio1
A1: COMUNE DI SOLTO COLLINA
A3: FONDO CREDITI DI DUBBIA ESIGIBILITA'
A5: PROSPETTO DI CALCOLO DEL FONDO DA INSERIRE NEL BILANCIO DI PREVISIONE 2016
A8: ANNO | B8: 2011 | C8: 2012 | D8: 2013 | E8: 2014 | F8: 2015 | G8: TOTALE QUINQUENNIO | H8: % FONDO (100% MEDIA) | I8: PREVISIONI 2017 ENTRATE RILEVANTI AI FINI DELL'AC-CANTONAMENTO | J8: CALCOLO ACCANTONAMENTI | K8: IMPORTO MINIMO DA ACCANTONARE | L8: PREVISIONI 2018 ENTRATE RILEVANTI AI FINI DELL'AC-CANTONAMENTO | M8: CALCOLO ACCANTONAMENTI | N8: IMPORTO MINIMO DA ACCANTONARE | O8: PREVISIONI 2019 ENTRATE RILEVANTI AI FINI DELL'AC-CANTONAMENTO | P8: CALCOLO ACCANTONAMENTI | Q8: IMPORTO MINIMO DA ACCANTONARE
A9: ACCERTAMENTI A COMPETENZA | B9: 142000 | C9: 190000 | D9: 180000 | E9: 180500 | F9: 185000 | G9: =SUM(B9:F9) -> 877500 | I9: 186000 | L9: 186000 | O9: 186000
A10: INCASSI A COMPETENZA | B10: 136000 | C10: 180000 | D10: 172000 | E10: 164900 | F10: 175000 | G10: =SUM(B10:F10) -> 827900
A11: RAPPORTO INC/ACC | B11: =B10/B9 -> 0.9577464789 | C11: 0.9473684211 | D11: 0.9555555556 | E11: 0.9135734072 | F11: 0.9459459459 | G11: =G10/G9 -> 0.9434757835
K12: 0.7 | N12: 0.85 | Q12: 0.85
A13: METODO A1) MEDIA ARITMETICA SU TOTALI | G13: =G11 -> 0.9434757835 | H13: =100%-G13 -> 0.05652421652 | I13: =I9 -> 186000 | J13: =I13*H13 -> 10513.50427 | K13: =J13*K12 -> 7359.452991 | L13: =L9 -> 186000 | M13: =L13*H13 -> 10513.50427 | N13: =M13*70% -> 7359.452991 | O13: =O9 -> 186000 | P13: =O13*H13 -> 10513.50427 | Q13: =P13*85% -> 8936.478632
A14: METODO A1) MEDIA ARITMETICA DEI SINGOLI RAPPORTI | G14: =(B11+C11+D11+E11+F11)/5 -> 0.9440379617 | H14: =100%-G14 -> 0.05596203827 | I14: =I9 -> 186000 | J14: =I14*H14 -> 10408.93912 | K14: =J14*K12 -> 7286.257383 | L14: =L9 -> 186000 | M14: =L14*H14 -> 10408.93912 | N14: =M14*70% -> 7286.257383 | O14: =O9 -> 186000 | P14: =O14*H14 -> 10408.93912 | Q14: =P14*85% -> 8847.598251
A16: METODO B) PONDERAZIONE INCASSI ACCERTAMENTI | B16: 0.1 | C16: 0.1 | D16: 0.1 | E16: 0.35 | F16: 0.35
A17: ACCERTAMENTI PER PESO PONDERAZIONE | B17: =B9*B16 -> 14200 | C17: =C9*C16 -> 19000 | D17: =D9*D16 -> 18000 | E17: =E9*E16 -> 63175 | F17: =F9*F16 -> 64750 | G17: =SUM(B17:F17) -> 179125
A18: INCASSI PER PESO PONDERAZIONE | B18: =B10*B16 -> 13600 | C18: =C10*C16 -> 18000 | D18: =D10*D16 -> 17200 | E18: =E10*E16 -> 57715 | F18: =F10*F16 -> 61250 | G18: =SUM(B18:F18) -> 167765
A19: RAPPORTO INC/ACC | B19: =B18/B17 -> 0.9577464789 | C19: 0.9473684211 | D19: 0.9555555556 | E19: 0.9135734072 | F19: 0.9459459459 | G19: 0.9365806001
A20: MEDIA ARITMETICA SU TOTALI | G20: =G19 -> 0.9365806001 | H20: =100%-G20 -> 0.06341939986 | I20: =I9 -> 186000 | J20: =I20*H20 -> 11796.00837 | K20: =J20*K12 -> 8257.205862 | L20: =L9 -> 186000 | M20: =L20*H20 -> 11796.00837 | N20: =M20*70% -> 8257.205862 | O20: =O9 -> 186000 | P20: =O20*H20 -> 11796.00837 | Q20: =P20*85% -> 10026.60712
A22: METODO C) MEDIA PONDERATA DEI SINGOLI RAPPORTI
A23: PONDERAZIONE | B23: 0.1 | C23: 0.1 | D23: 0.1 | E23: 0.35 | F23: 0.35
A24: % INCASSATO/ACCERTATO*PESO PONDERAZIONE | B24: =B23*B11 -> 0.09577464789 | C24: =C23*C11 -> 0.09473684211 | D24: =D23*D11 -> 0.09555555556 | E24: =E23*E11 -> 0.3197506925 | F24: =F23*F11 -> 0.3310810811 | G24: =SUM(B24:F24) -> 0.9368988191
A25: MEDIA ARITMETICA SU TOTALI | G25: =G24 -> 0.9368988191 | H25: =100%-G25 -> 0.06310118085 | I25: =I9 -> 186000 | J25: =I25*H25 -> 11736.81964 | K25: =J25*K12 -> 8215.773747 | L25: =L9 -> 186000 | M25: =L25*H25 -> 11736.81964 | N25: =M25*70% -> 8215.773747 | O25: =O9 -> 186000 | P25: =O25*H25 -> 11736.81964 | Q25: =P25*85% -> 9976.296692

Sheet Foglio2

Sheet Foglio3
